bitfinex/quotes_ETHUSD_20251116
["timestamp","ask_amount","ask_price","bid_price","bid_amount"]
[1763296088327,0.4585,3172.9,3172.5,0.5]
[1763296088616,0.4585,3172.9,3172.8,0.4585]
[1763296089036,1.0991,3172.9,3172.8,0.4585]
[1763296090024,0.002,3173.5,3172.8,0.4585]
[1763296090209,0.4567,3173.5,3172.9,0.0315169]
[1763296091019,0.4567,3173.5,3172.8,0.4900179]
[1763296091986,0.4567,3173.5,3172.8,0.4585]
[1763296092819,0.6444,3172.9,3172.8,0.4585]
[1763296093202,0.4585,3172.9,3172.8,0.4585]
[1763296093402,0.1859,3173.1,3172.8,0.4585]
[1763296093702,0.6406,3173.1,3172.8,0.4585]
[1763296094299,0.4585,3172.9,3172.8,0.4585]
[1763296095610,0.1859,3173.1,3172.8,0.4585]
[1763296095824,0.4782,3172.9,3172.8,0.4585]
[1763296096142,0.1859,3173.1,3172.8,0.4585]
[1763296096342,0.4911,3173.4,3172.8,0.4585]
[1763296097911,0.002,3173.5,3172.8,0.4585]
[1763296098311,0.002,3173.5,3173.4,0.905504]
[1763296098512,0.002,3173.5,3173.4,1.6367415]
[1763296098763,0.002,3173.5,3173.4,1.83192759]
[1763296098938,0.002,3173.5,3173.4,1.61913196]
[1763296099814,0.002,3173.5,3173.4,1.22685255]
[1763296102737,0.002,3173.5,3173.4,2.36059335]
[1763296103154,0.002,3173.8,3173.5,1.5392448]
[1763296103359,0.002,3173.8,3173.6,5.10699776]
[1763296103731,0.002,3173.8,3173.7,0.905504]
[1763296103932,0.002,3173.8,3173.7,5.8692448]
[1763296104541,0.002,3174.1,3173.9,0.905504]
[1763296104761,0.002,3174.1,3173.9,0.93701097]
[1763296105066,0.002,3174.1,3173.9,1.80883379]
[1763296105372,0.002,3174.1,3174.0,0.405504]
[1763296105534,0.002,3174.1,3174.0,5.8692448]
[1763296106067,0.002,3174.1,3174.0,5.90075078]
[1763296107333,0.002,3174.1,3174.0,5.8692448]
[1763296107529,0.002,3174.1,3174.0,6.66948339]
[1763296109574,0.002,3174.1,3174.0,6.26397939]
[1763296109733,0.002,3174.1,3174.0,6.66948339]
[1763296110160,0.002,3174.1,3174.0,6.26397939]
[1763296110676,0.4926,3174.1,3174.0,6.26397939]
[1763296110858,0.9758,3174.1,3174.0,5.13023859]
[1763296111028,0.9758,3174.1,3174.0,4.63023859]
[1763296111382,0.9758,3174.1,3174.0,1.93397939]
[1763296111557,0.4926,3174.1,3174.0,1.25987263]
[1763296111960,0.002,3174.1,3174.0,1.25987263]
[1763296112169,0.002,3174.1,3174.0,2.16537663]
[1763296117365,0.002,3174.1,3174.0,5.99537663]
[1763296117871,0.4881,3174.1,3174.0,5.99537663]
[1763296118074,0.4881,3174.1,3174.0,6.59491429]
[1763296118662,0.9711,3174.1,3174.0,6.59491429]
[1763296118967,0.4881,3174.1,3174.0,6.59491429]
[1763296119342,0.002,3174.1,3174.0,6.59491429]
[1763296120137,0.4881,3174.1,3174.0,6.59491429]
[1763296121746,0.9711,3174.1,3174.0,6.18941029]
[1763296121951,0.9711,3174.1,3174.0,2.35941029]
[1763296122155,0.002,3174.1,3174.0,1.75987263]
[1763296122473,0.002,3174.1,3174.0,2.19688261]
[1763296122646,0.002,3174.1,3174.0,2.16537663]
[1763296123047,0.002,3174.1,3174.0,2.19688261]
[1763296123251,0.002,3174.1,3174.0,2.16537663]
[1763296123474,0.002,3174.1,3174.0,2.38506509]
[1763296123670,0.4881,3174.1,3174.0,2.38506509]
[1763296123879,0.9711,3174.1,3174.0,2.38506509]
[1763296124373,0.4881,3174.1,3174.0,2.38506509]
[1763296125967,0.002,3174.1,3174.0,2.38506509]
[1763296127850,0.002,3174.1,3174.0,2.41657107]
[1763296128094,0.002,3174.3,3174.1,1.1337408]
[1763296128393,0.002,3174.3,3174.1,2.39427599]
[1763296128697,0.002,3174.3,3174.1,6.22427599]
[1763296128924,0.002,3174.3,3174.2,0.905504]
[1763296129109,0.002,3174.3,3174.2,8.71884957]
[1763296129278,0.002,3174.3,3174.2,5.8692448]
[1763296129478,0.002,3174.3,3174.2,6.55775843]
[1763296129706,0.002,3174.3,3174.2,6.52625443]
[1763296132678,0.002,3174.3,3174.2,6.6523795]
[1763296135010,0.002,3174.5,3174.3,1.5392448]
[1763296135184,0.002,3174.5,3174.4,0.905504]
[1763296135510,0.002,3174.8,3174.7,0.905504]
[1763296136591,0.002,3174.8,3174.7,1.53233455]
[1763296136797,0.002,3174.8,3174.7,2.19853455]
[1763296138025,0.002,3174.8,3174.7,3.33227535]
[1763296139086,0.002,3174.8,3174.7,3.36377438]
[1763296139286,0.002,3174.8,3174.7,3.9502047]
[1763296140209,0.002,3174.8,3174.7,3.98170373]
[1763296140405,0.002,3174.8,3174.7,3.9502047]
[1763296140607,0.002,3175.0,3174.8,1.5392448]
[1763296140799,0.002,3175.0,3174.9,5.90074185]
[1763296141006,0.002,3175.0,3174.9,6.65041498]
[1763296141201,0.4881,3175.0,3174.9,7.13341498]
[1763296141987,0.9711,3175.0,3174.9,7.13341498]
[1763296143332,0.002,3175.0,3174.9,7.13341498]
[1763296144443,0.483,3175.5,3175.0,1.5392448]
[1763296144643,0.1807,3175.6,3175.5,0.5]
[1763296144840,0.1807,3175.6,3175.3,1.1337408]
[1763296145145,0.4555,3175.5,3175.3,1.6337408]
[1763296145331,0.4942,3175.4,3175.3,2.0392448]
[1763296145740,0.9497,3175.4,3175.3,1.6337408]
[1763296145964,0.9497,3175.4,3175.3,2.75604148]
[1763296149450,0.9497,3175.4,3175.3,1.62230068]
[1763296149650,0.9497,3175.4,3175.3,0.9942]
[1763296150226,0.4942,3175.4,3175.3,0.9942]
[1763296151226,0.4942,3175.4,3175.3,1.399704]
[1763296151956,0.9497,3175.4,3175.3,1.399704]
[1763296153357,0.9517,3175.4,3175.3,1.399704]
[1763296153528,0.9517,3175.4,3175.3,1.65304848]
[1763296154557,0.9517,3175.4,3175.3,2.78678928]
[1763296154964,0.9517,3175.4,3175.3,1.1337408]
[1763296158033,0.9517,3175.4,3175.3,1.6337408]
[1763296158949,0.002,3175.4,3175.3,1.1337408]
[1763296159131,0.002,3175.4,3175.3,1.6337408]
[1763296159327,0.002,3175.4,3175.3,2.3108408]
[1763296159532,0.4831,3175.4,3175.3,2.54192488]
[1763296160755,0.002,3175.4,3175.3,2.94742888]
[1763296161169,0.4831,3175.4,3175.3,2.94742888]
[1763296161534,0.9795,3175.4,3175.3,2.94742888]
[1763296165780,0.9795,3175.4,3175.3,1.8108408]
[1763296166076,0.9795,3175.4,3175.3,2.3108408]
[1763296167284,0.9795,3175.4,3175.3,1.8108408]
[1763296172305,0.9795,3175.4,3175.3,0.6771]
[1763296178719,0.9795,3175.4,3175.0,0.001]
[1763296178894,0.4993,3175.1,3175.0,0.001]
[1763296179299,0.9834,3175.1,3175.0,0.5003]
[1763296184833,0.4841,3175.3,3175.0,0.5003]
[1763296185157,0.4841,3175.3,3175.0,1.0003]
[1763296185296,0.4841,3175.3,3175.1,0.405504]
[1763296185493,0.4841,3175.3,3175.0,1.0003]
[1763296185699,0.4993,3175.1,3175.0,0.906504]
[1763296185929,0.4993,3175.1,3175.0,0.501]
[1763296186128,0.9834,3175.1,3175.0,0.001]
[1763296186317,0.9834,3175.1,3175.0,0.5003]
[1763296190053,0.9834,3175.1,3175.0,0.0003]
[1763296190210,0.9834,3175.1,3174.6,0.001]
[1763296190414,0.5158,3174.7,3174.6,0.001]
[1763296190819,0.9999,3174.7,3174.6,0.12716963]
[1763296198154,0.5158,3174.7,3174.6,0.12716963]
[1763296198455,0.9999,3174.7,3174.6,0.12716963]
[1763296208182,0.002,3175.0,3174.6,1.25226963]
[1763296208359,0.002,3175.0,3174.9,0.4827]
[1763296209048,0.002,3175.0,3174.9,0.9363]
[1763296209967,0.002,3175.0,3174.9,1.4165]
[1763296210367,0.002,3175.0,3174.9,1.6487004]
[1763296210560,0.002,3175.0,3174.9,1.1685004]
[1763296211163,0.002,3175.0,3174.9,2.1487004]
[1763296211391,0.002,3175.0,3174.9,3.6879452]
[1763296212095,0.002,3175.0,3174.9,2.2250452]
[1763296212281,0.002,3175.0,3174.9,3.1879452]
[1763296212888,0.002,3175.0,3174.9,2.3022412]
[1763296213064,0.942,3175.0,3174.9,1.5873408]
[1763296213267,0.942,3175.0,3174.9,0.4536]
[1763296213464,1.04199999,3175.0,3174.9,0.4536]
[1763296215393,0.4904,3175.0,3174.9,0.4536]
[1763296216090,0.9417,3175.0,3174.9,0.4536]
[1763296218996,0.4904,3175.0,3174.9,0.4536]
[1763296219782,0.9417,3175.0,3174.9,0.4536]
[1763296221989,1.04169999,3175.0,3174.9,0.4536]
[1763296224108,1.04169999,3175.0,3174.6,0.001]
[1763296224312,0.5308,3174.7,3174.6,0.001]
[1763296224692,1.08209999,3174.7,3174.6,0.001]
[1763296229981,1.08209999,3174.7,3173.8,0.001]
[1763296229982,0.6831,3173.4,3172.2,2.81551914]
[1763296230182,0.6831,3173.4,3171.8,2.81551914]
[1763296230183,0.04299999,3172.5,3171.8,2.81551914]
[1763296230415,0.40709999,3172.5,3171.3,0.001]
[1763296230591,0.85839999,3172.5,3171.3,0.001]
[1763296230996,0.8154,3172.5,3171.3,0.001]
[1763296231316,0.40709999,3172.5,3171.3,0.001]
[1763296231485,0.85839999,3172.5,3171.3,0.4897]
[1763296233517,0.04299999,3172.5,3171.5,0.405504]
[1763296233679,0.1843,3173.4,3172.4,0.4897]
[1763296234044,0.4513,3173.3,3172.4,0.4897]
[1763296234727,0.49359999,3172.5,3172.4,0.001]
[1763296235088,0.95999999,3172.5,3172.4,0.001]
[1763296236022,0.4664,3172.8,3172.4,0.001]
[1763296237102,0.45939999,3172.8,3172.4,0.001]
[1763296239528,0.4506,3172.5,3172.4,0.001]
[1763296240229,0.45939999,3172.8,3172.4,0.001]
[1763296241815,0.46139999,3172.8,3172.4,0.001]
[1763296243334,0.07376045,3173.4,3172.4,0.001]
[1763296243532,1.1337408,3173.7,3172.4,0.001]
[1763296243533,0.405504,3173.6,3172.4,0.001]
[1763296243732,0.1903,3173.5,3172.4,0.001]
[1763296245339,0.4506,3172.5,3172.4,0.001]
[1763296246722,0.405504,3173.4,3172.4,0.001]
[1763296246930,7.170704,3173.4,3172.4,0.001]
[1763296247224,0.7361004,3173.3,3172.4,0.001]
[1763296247430,1.2025004,3173.3,3172.4,0.001]
[1763296247635,0.4664,3173.2,3172.4,0.001]
[1763296249503,0.031523,3173.1,3172.4,0.001]
[1763296250030,0.4664,3173.0,3172.4,0.001]
[1763296250236,0.031523,3172.9,3172.4,0.001]
[1763296250604,0.4664,3172.8,3172.4,0.001]
[1763296250809,0.031523,3172.7,3172.4,0.001]
[1763296251245,0.4664,3173.0,3172.4,0.001]
[1763296251406,0.4664,3173.2,3172.4,0.001]
[1763296251604,1.25708044,3173.2,3172.4,0.001]
[1763296252244,0.4664,3173.1,3172.4,0.001]
[1763296254718,0.1929,3172.5,3172.4,0.001]
[1763296255226,0.6566,3172.5,3172.4,0.001]
[1763296256411,0.1929,3172.5,3172.4,0.001]
[1763296256959,0.6566,3172.5,3172.4,0.001]
[1763296259150,0.95164322,3172.5,3172.4,0.001]
[1763296259926,1.14623528,3172.5,3172.4,0.001]
[1763296260130,1.82600885,3172.5,3172.4,0.001]
[1763296261462,2.23151285,3172.5,3172.4,0.001]
[1763296261665,1.5392448,3172.4,3172.1,0.001]
[1763296261857,0.410104,3172.2,3172.0,0.001]
[1763296262053,4.12357814,3172.1,3172.0,0.001]
[1763296262270,1.5392448,3172.0,3171.7,0.001]
[1763296262433,1.7360448,3171.8,3171.3,0.001]
[1763296262629,1.44145311,3171.4,3171.3,0.001]
[1763296262832,3.5500107,3171.4,3171.3,0.001]
[1763296263068,2.50078841,3171.4,3171.3,0.001]
[1763296263369,3.63452921,3171.4,3171.3,0.001]
[1763296263551,6.75490291,3171.4,3171.3,0.001]
[1763296264175,6.18475006,3171.4,3171.3,0.001]
[1763296264376,5.05452921,3171.4,3171.3,0.001]
[1763296265163,6.18339772,3171.4,3171.3,0.001]
[1763296265750,4.76339772,3171.4,3171.3,0.001]
[1763296266151,3.63452921,3171.4,3171.3,0.001]
[1763296267164,4.47976392,3171.4,3171.3,0.001]
[1763296267358,4.51128692,3171.4,3171.3,0.001]
[1763296267555,4.47976392,3171.4,3171.3,0.001]
[1763296267803,3.63452921,3171.4,3171.3,0.001]
[1763296267967,2.50078841,3171.4,3171.3,0.001]
[1763296268153,1.16051679,3171.4,3171.3,0.001]
[1763296268352,0.48074322,3171.4,3171.3,0.001]
[1763296268850,2.06380682,3171.4,3171.3,0.001]
[1763296269177,0.1903,3171.8,3171.3,0.001]
[1763296269378,0.1885,3171.4,3171.3,0.001]
[1763296269787,0.6557,3171.4,3171.3,0.001]
[1763296270077,0.98045345,3171.4,3171.3,0.001]
[1763296270282,0.51325345,3171.4,3171.3,0.001]
[1763296270487,0.687223,3171.4,3171.3,0.001]
[1763296270653,0.98045345,3171.4,3171.3,0.001]
[1763296271051,1.35443445,3171.4,3171.3,0.001]
[1763296271280,2.0615834,3171.4,3171.3,0.001]
[1763296271466,2.26774174,3171.4,3171.3,0.001]
[1763296273371,2.23621874,3171.4,3171.3,0.001]
[1763296273770,9.66875954,3171.4,3171.3,0.001]
[1763296279693,8.9930844,3171.4,3171.3,0.001]
[1763296281308,8.5258844,3171.4,3171.3,0.001]
[1763296281912,8.9930844,3171.4,3171.3,0.001]
[1763296283233,9.67014112,3171.4,3171.3,0.001]
[1763296283710,9.67080638,3171.4,3171.3,0.001]
[1763296284492,12.99480638,3171.4,3171.3,0.001]
[1763296284691,9.67080638,3171.4,3171.3,0.001]
[1763296287229,10.51604109,3171.4,3171.3,0.001]
[1763296287693,10.04884109,3171.4,3171.3,0.001]
[1763296288122,10.51604109,3171.4,3171.3,0.001]
[1763296289106,9.67080638,3171.4,3171.3,0.001]
[1763296290257,12.99480638,3171.4,3171.3,0.001]
[1763296290597,9.67080638,3171.4,3171.3,0.001]
[1763296291544,12.99480638,3171.4,3171.3,0.001]
[1763296292122,14.69518008,3171.4,3171.3,0.001]
[1763296293424,12.99480638,3171.4,3171.3,0.001]
[1763296293997,4.8632448,3171.0,3170.9,0.001]
[1763296294215,7.74679378,3171.0,3170.9,0.001]
[1763296294415,8.18977078,3171.0,3170.9,0.001]
[1763296296651,7.26970324,3171.0,3170.9,0.4733]
[1763296297122,7.26970324,3171.0,3170.9,0.9252]
[1763296297323,7.67520724,3171.0,3170.9,0.9252]
[1763296297524,7.84070724,3171.0,3170.9,0.001]
[1763296297725,8.79417644,3171.0,3170.9,0.001]
[1763296298057,8.30417644,3171.0,3170.9,0.001]
[1763296298244,7.26970324,3171.0,3170.9,0.4733]
[1763296298445,7.67520724,3171.0,3170.9,0.001]
[1763296298762,7.84400724,3171.0,3170.9,0.001]
[1763296299866,7.67520724,3171.0,3170.9,0.4733]
[1763296300226,7.67520724,3171.0,3170.9,0.001]
[1763296301156,8.69313044,3171.0,3170.9,0.001]
[1763296306359,8.52763044,3171.0,3170.9,0.001]
[1763296306539,8.52763044,3171.0,3170.9,0.4733]
[1763296306736,7.67520724,3171.0,3170.9,0.4733]
[1763296307732,7.67520724,3171.0,3170.9,0.001]
[1763296307967,7.60520724,3171.0,3170.9,0.001]
[1763296308560,7.60520724,3171.0,3170.9,0.4733]
[1763296309062,7.60520724,3171.0,3170.9,0.9252]
[1763296311558,2.23242796,3171.0,3170.9,0.001]
[1763296311757,1.47190724,3171.0,3170.9,0.001]
[1763296312385,0.90090324,3171.0,3170.9,0.9252]
[1763296312543,0.002,3171.3,3170.9,0.9252]
[1763296312744,0.002,3171.3,3171.2,0.6633]
[1763296313260,0.002,3171.3,3171.2,1.1152]
[1763296319861,0.002,3171.7,3171.2,1.1152]
[1763296320157,0.002,3171.7,3171.6,0.4723]
[1763296320665,0.002,3171.7,3171.6,0.9242]
[1763296327698,0.4649,3171.7,3171.2,0.191]
[1763296327899,0.031523,3171.6,3171.3,0.4589]
[1763296328414,0.031523,3171.6,3171.5,0.4844]
[1763296328918,0.002,3171.7,3171.5,0.9433]
[1763296329105,0.033523,3171.7,3171.6,0.4844]
[1763296330015,0.002,3171.7,3171.6,0.4844]
[1763296331026,0.1698,3171.7,3171.2,0.191]
[1763296331206,0.036423,3171.6,3171.2,0.191]
[1763296332299,0.163,3171.3,3170.9,0.001]
[1763296332509,0.031523,3171.4,3170.9,0.001]
[1763296332749,0.1678,3171.0,3170.9,0.001]
[1763296333041,0.573304,3171.0,3170.9,0.001]
[1763296333342,3.732504,3170.6,3170.2,0.001]
[1763296333633,1.41479286,3170.6,3170.2,0.001]
[1763296333833,0.569604,3170.6,3170.2,0.001]
[1763296333993,1.35072402,3170.6,3170.2,0.001]
[1763296334321,1.057104,3170.6,3170.2,0.001]
[1763296334819,1.35075564,3170.6,3170.2,0.001]
[1763296336517,2.02646933,3170.6,3170.2,0.001]
[1763296336824,3.83063344,3170.6,3170.2,0.001]
[1763296337393,3.15491975,3170.6,3170.2,0.001]
[1763296337724,0.194,3170.9,3170.2,0.001]
[1763296337953,0.1943,3170.6,3170.2,0.001]
[1763296339729,0.225823,3170.6,3170.2,0.001]
[1763296340431,0.405504,3170.8,3170.2,0.001]
[1763296340815,0.1943,3170.6,3170.2,0.001]
[1763296341016,0.225823,3170.6,3170.2,0.001]
[1763296341432,1.080527,3170.6,3170.2,0.001]
[1763296342534,0.194,3170.9,3170.2,0.001]
[1763296342732,0.405504,3171.0,3170.5,0.9185]
[1763296342896,0.405504,3171.1,3170.5,0.9185]
[1763296343121,0.405504,3171.1,3170.5,0.4657]
[1763296343321,0.857204,3171.1,3170.5,0.4657]
[1763296344564,0.405504,3171.0,3170.5,0.4657]
[1763296344926,0.405504,3170.8,3170.5,0.4657]
[1763296345658,6.704304,3170.8,3170.5,0.4657]
[1763296346021,0.4854,3170.6,3170.5,0.001]
[1763296346617,9.85808275,3170.8,3170.5,0.4657]
[1763296346834,1.30117847,3170.7,3170.5,0.4657]
[1763296347054,9.85808954,3170.8,3170.5,0.4657]
[1763296347221,6.704304,3170.8,3170.5,0.001]
[1763296347421,10.30978222,3170.8,3170.5,0.001]
[1763296347637,0.1943,3170.6,3170.5,0.001]
[1763296347851,10.30978222,3170.8,3170.5,0.001]
[1763296348152,1.03097822,3170.7,3170.5,0.001]
[1763296348679,6.930127,3170.6,3170.5,0.001]
[1763296348826,7.347804,3170.6,3170.5,0.001]
[1763296349226,1.049004,3170.6,3170.5,0.001]
[1763296349625,1.03097822,3170.7,3170.5,0.9185]
[1763296349824,0.4558,3171.1,3170.6,0.4647]
[1763296349825,3.15548711,3171.1,3170.6,0.4647]
[1763296350064,3.15548711,3171.1,3170.6,0.9175]
[1763296350282,0.1943,3170.7,3170.5,0.001]
[1763296350454,0.031523,3170.6,3170.1,0.001]
[1763296350677,1.5392448,3169.2,3168.2,0.4528]
[1763296350888,0.77953138,3169.1,3168.2,0.4528]
[1763296351058,0.48662448,3169.1,3168.2,0.4528]
[1763296351262,0.405504,3168.9,3167.9,0.1846]
[1763296351576,0.2856,3168.0,3167.1,0.4528]
[1763296351784,0.409204,3167.9,3167.1,0.4528]
[1763296352096,0.860904,3167.9,3167.1,0.4528]
[1763296352658,0.409204,3167.9,3167.1,3.61019685]
[1763296352851,0.409204,3167.9,3167.2,0.4528]
[1763296353398,0.405504,3167.9,3167.2,0.4528]
[1763296353695,0.405504,3168.1,3167.2,0.4528]
[1763296353990,0.4517,3168.5,3167.2,0.4528]
[1763296354195,3.60736915,3168.9,3167.3,0.6767723]
[1763296354416,0.405504,3168.7,3167.3,0.6767723]
[1763296354575,0.405504,3168.7,3167.4,0.4563]
[1763296354778,0.405504,3168.5,3167.4,3.61336714]
[1763296354978,1.93594239,3168.5,3167.5,0.42901394]
[1763296355179,0.80220159,3168.5,3167.5,0.88531394]
[1763296355512,0.437027,3168.9,3167.5,0.88531394]
[1763296355813,0.437027,3168.9,3167.6,0.4563]
[1763296356032,0.48662448,3169.1,3167.6,0.4563]
[1763296356332,0.031523,3169.0,3167.6,0.4563]
[1763296356492,0.405504,3169.1,3167.6,0.4563]
[1763296356695,0.405504,3168.9,3167.6,0.4563]
[1763296356894,0.405504,3168.9,3167.7,6.3137292]
[1763296357101,0.4646,3169.5,3167.7,6.3137292]
[1763296357298,0.4646,3169.5,3167.8,1.13330292]
[1763296357625,0.405504,3169.4,3167.8,1.13330292]
[1763296357937,3.15497223,3169.6,3167.9,0.4563]
[1763296358227,0.496123,3169.5,3167.9,0.4563]
[1763296358430,1.6298638,3169.5,3167.9,0.4563]
[1763296358598,0.8839876,3169.4,3168.0,0.22670437]
[1763296358795,3.56093469,3169.2,3168.1,3.15646602]
[1763296359005,0.031523,3169.1,3168.1,6.96703204]
[1763296359182,0.031523,3169.1,3168.2,0.4563]
[1763296360884,0.031523,3169.1,3168.3,3.15626676]
[1763296361087,0.031523,3169.1,3168.3,3.85293675]
[1763296361390,3.25168165,3169.9,3169.0,0.4743]
[1763296361588,0.405504,3169.8,3169.4,0.1978]
[1763296361835,1.5392448,3169.8,3169.4,0.1978]
[1763296361995,0.79456081,3169.7,3169.4,0.1978]
[1763296362742,0.499,3169.5,3168.7,0.4563]
[1763296363052,0.031523,3169.4,3168.7,3.61216363]
[1763296363342,0.405504,3169.6,3168.8,0.36121636]
[1763296363644,0.031523,3169.4,3168.7,0.4563]
[1763296363798,0.405504,3169.6,3168.8,0.4563]
[1763296363998,0.031523,3169.5,3168.8,0.4563]
[1763296364404,0.405504,3169.3,3168.4,0.4563]
[1763296364641,0.031523,3169.2,3168.1,0.6541]
[1763296364817,0.031523,3169.2,3168.1,0.1978]
[1763296364818,3.56113238,3169.0,3168.1,0.1978]
[1763296365152,0.2702,3168.2,3167.4,0.4563]
[1763296365444,0.031523,3168.1,3167.6,0.4563]
[1763296366041,0.437027,3168.5,3167.6,0.4563]
[1763296366628,0.405504,3168.7,3167.6,0.4563]
[1763296367058,1.1337408,3168.8,3167.7,6.3137292]
[1763296367358,1.1337408,3168.8,3167.8,0.67700292]
[1763296367522,0.031523,3168.7,3167.8,1.13330292]
[1763296367854,0.031523,3168.7,3167.9,0.4563]
[1763296368651,0.031523,3168.9,3167.9,0.4563]
[1763296368856,0.218423,3168.9,3167.7,6.3137292]
[1763296369032,0.405504,3168.7,3167.3,0.001]
[1763296369241,0.405504,3168.5,3167.5,0.4563]
[1763296369464,0.031523,3168.4,3167.5,0.4563]
[1763296369668,1.2161657,3168.4,3167.5,0.4563]
[1763296370454,1.1846427,3168.4,3167.5,0.4563]
[1763296370654,0.7200427,3168.4,3167.5,0.4563]
[1763296370989,3.15626676,3168.3,3167.5,3.61335119]
[1763296371183,3.15626676,3168.3,3167.5,0.4563]
[1763296371382,4.57640654,3168.3,3167.5,0.4563]
[1763296371983,1.42013978,3168.3,3167.5,3.61336043]
[1763296372186,1.42013978,3168.3,3167.5,6.77042436]
[1763296372381,6.704304,3168.5,3167.6,0.4563]
[1763296372588,3.15616748,3168.4,3167.6,0.4563]
[1763296372969,3.15616748,3168.4,3167.6,3.61320821]
[1763296374107,7.168904,3168.5,3167.6,3.61320821]
[1763296374312,10.32497231,3168.5,3167.6,3.61320821]
[1763296374606,13.48104062,3168.5,3167.6,3.61320821]
[1763296374783,1.34810406,3168.4,3167.6,3.61320821]
[1763296375205,3.15626676,3168.3,3167.6,0.4563]
[1763296375531,0.031523,3168.2,3167.6,0.4563]
[1763296375900,6.31253352,3168.3,3167.6,0.4563]
[1763296376393,3.15626676,3168.3,3167.6,0.4563]
[1763296376594,3.15626676,3168.3,3167.6,3.61325023]
[1763296377437,1.34810406,3168.4,3167.7,0.4563]
[1763296377647,9.86045806,3168.5,3167.7,0.4563]
[1763296378185,6.2988,3168.5,3168.4,0.4743]
[1763296378386,6.59277693,3168.5,3168.4,0.4743]
[1763296378941,6.59277693,3168.5,3168.2,0.1978]
[1763296379111,9.45486753,3168.5,3168.2,0.1978]
[1763296379283,0.2702,3168.3,3167.4,1.1337408]
[1763296379484,0.2702,3168.3,3167.3,0.001]
[1763296379485,0.29411211,3168.2,3167.3,0.001]
[1763296379787,0.2702,3167.4,3167.3,0.001]
[1763296380112,0.4571,3167.4,3167.3,0.001]
[1763296380319,0.29411211,3167.4,3167.3,0.001]
[1763296380917,0.67742295,3167.7,3167.3,0.9316]
[1763296381099,0.29440018,3167.6,3167.3,0.4573]
[1763296381298,3.83421767,3167.8,3167.5,0.4743]
[1763296381518,0.67780424,3167.7,3167.5,0.4743]
[1763296381716,0.67833993,3168.0,3167.5,0.4563]
[1763296382034,0.29441081,3167.9,3167.5,0.4563]
[1763296382233,0.031523,3167.9,3167.5,0.4563]
[1763296382532,0.67853348,3168.2,3167.8,0.4743]
[1763296382736,0.29450755,3168.1,3167.8,0.9306]
[1763296383033,0.29450755,3168.1,3167.8,0.4563]
[1763296383034,0.031523,3168.1,3167.8,0.4563]
[1763296383424,0.67853348,3168.3,3168.0,0.4743]
[1763296383740,0.29467092,3168.2,3167.7,0.4563]
[1763296383903,0.29467092,3168.1,3167.4,3.6134636]
[1763296384110,0.405504,3168.3,3167.5,0.4563]
[1763296384305,0.29470894,3168.2,3167.3,0.001]
[1763296384511,0.29470894,3168.1,3167.3,0.4954]
[1763296384709,0.29465843,3168.0,3167.3,0.4954]
[1763296384926,0.67853348,3168.2,3167.3,3.65266003]
[1763296385128,0.29466189,3168.1,3167.3,0.4954]
[1763296385338,6.31333058,3167.9,3167.3,0.001]
[1763296385543,0.2534,3167.4,3167.3,0.001]
[1763296387239,4.502827,3167.4,3167.3,0.001]
[1763296387539,8.60106879,3167.4,3167.3,0.001]
[1763296388348,9.73480959,3167.4,3167.3,0.001]
[1763296389047,10.86671665,3167.4,3167.3,0.001]
[1763296389227,11.1371869,3167.4,3167.3,0.001]
[1763296389426,12.26909396,3167.4,3167.3,0.001]
[1763296390225,11.1371869,3167.4,3167.3,0.001]
[1763296390531,8.65588686,3167.4,3167.3,0.001]
[1763296390732,7.8101869,3167.4,3167.3,0.001]
[1763296391553,7.8101869,3167.4,3167.3,0.9901]
[1763296391554,0.97260119,3167.4,3167.3,0.9901]
[1763296391756,3.15576874,3168.8,3167.3,0.9901]
[1763296391920,0.520223,3168.7,3167.4,0.4944]
[1763296392254,2.33087932,3168.7,3167.4,0.4944]
[1763296392426,0.67685508,3168.6,3167.3,0.001]
[1763296392632,0.26460489,3168.5,3167.3,0.001]
[1763296392828,0.75330489,3168.5,3167.3,0.001]
[1763296393028,0.894204,3168.4,3167.3,0.001]
[1763296393350,0.405504,3168.2,3167.3,0.001]
[1763296393655,0.845804,3167.4,3167.3,0.001]
[1763296394359,1.363627,3167.4,3167.3,0.001]
[1763296395420,5.6230084,3167.4,3167.3,0.001]
[1763296395621,6.53253736,3167.4,3167.3,0.001]
[1763296395824,6.50101436,3167.4,3167.3,0.001]
[1763296396018,7.17800631,3167.4,3167.3,0.001]
[1763296397030,6.50101436,3167.4,3167.3,0.001]
[1763296397832,7.17749782,3167.4,3167.3,0.001]
[1763296398359,10.50449782,3167.4,3167.3,0.001]
[1763296398653,10.50449782,3167.4,3166.9,0.001]
[1763296398654,4.8662448,3167.0,3166.9,0.001]
[1763296398832,3.02082614,3167.0,3166.9,0.001]
[1763296399036,2.37948534,3167.0,3166.9,0.001]
[1763296399243,1.82078746,3167.0,3166.9,0.001]
[1763296399461,6.11209062,3167.0,3166.9,0.001]
[1763296399620,6.14361362,3167.0,3166.9,0.001]
[1763296399820,9.47061362,3167.0,3166.9,0.001]
[1763296400059,9.43909062,3167.0,3166.9,0.001]
[1763296400256,10.78328103,3167.0,3166.9,0.001]
[1763296400859,10.78328103,3167.0,3166.6,0.001]
[1763296400860,1.5392448,3166.7,3166.6,0.001]
[1763296401063,2.50265126,3166.7,3166.6,0.001]
[1763296401263,6.32215126,3166.7,3166.6,0.001]
[1763296401429,6.29062826,3166.7,3166.6,0.001]